Cogmind - Beta 11.1 @@@ ROGUE MODE // 2022.12.12 @ 15:25:52 Player: sasha Result: Destroyed by V7-AQ2(M) with Antimatter Reactor chain reaction Performance ------------- Evolutions (1) 500 Regions Visited (5) 1000 Robots Destroyed (37) 185 Value Destroyed (911) 911 Prototype IDs (2) 40 Alien Tech Used (0) 0 Bonus (637) 637 TOTAL SCORE: 3273 Bonus ------- Follower Combat Kills 37 Met Imprinter 300 Was Imprinted 300 Cogmind --------- Core Integrity 0/400 Matter 300/300 Energy 170/170 System Corruption 0% Temperature Cool (0) Movement Walking (140) Location -6/Proximity Caves Parts ------- > --- POWER (1) -------- Makeshift Power Source > --- PROPULSION (2) --- Makeshift Leg Makeshift Leg > --- UTILITY (4) ------ Weight Redist. System Sensor Array Signal Interpreter Trap Extractor (0/4) > --- WEAPON (2) ------- High-powered Shotgun RU-N14's Throwing Claymores > --- INVENTORY (5) ---- Improved Aluminum Leg High-powered Shotgun High-powered Shotgun Greatsword Peak State ------------ > --- POWER ------------ Makeshift Power Source > --- PROPULSION ------- Makeshift Leg Makeshift Leg > --- UTILITY ---------- Weight Redist. System Sensor Array Signal Interpreter Trap Extractor > --- WEAPON ----------- High-powered Shotgun RU-N14's Throwing Claymores > --- INVENTORY -------- Sensor Array High-powered Shotgun High-powered Shotgun RU-N14's Throwing Claymores CR-A16's Pointy Stick [Rating: 29] Favorites ----------- Power Improved Ion Engine Engine Improved Ion Engine Propulsion Improved Aluminum Leg Leg Improved Aluminum Leg Utility Trap Extractor Device Trap Extractor Processor Signal Interpreter Weapon High-powered Shotgun Energy Gun Beam Rifle Energy Cannon Advanced Beam Cannon Ballistic Gun High-powered Shotgun Ballistic Cannon Improved Light Cannon Special Weapon RU-N14's Throwing Claymores Piercing Weapon CR-A16's Pointy Stick Build | -11 -10 -9 -9 -7 -6 ------- Run | Scr Mat Mat Min Zio Pro Slots Evolved 2 | . . 2 . . . Power . | . . . . . . Propulsion . | . . . . . . Utility 2 | . . 2 . . . Weapon . | . . . . . . Parts Attached 40 | 5 1 28 . 6 . Power 6 | 1 . 4 . 1 . Engine 6 | 1 . 4 . 1 . Core . | . . . . . . Reactor . | . . . . . . Propulsion 12 | 2 . 8 . 2 . Treads . | . . . . . . Leg 12 | 2 . 8 . 2 . Wheel . | . . . . . . Hover . | . . . . . . Flight . | . . . . . . Utility 8 | . 1 7 . . . Device 6 | . 1 5 . . . Storage . | . . . . . . Processor 2 | . . 2 . . . Hackware . | . . . . . . Protection . | . . . . . . Artifact . | . . . . . . Weapon 14 | 2 . 9 . 3 . Energy Gun 2 | . . 2 . . . Energy Cannon 1 | . . 1 . . . Ballistic Gun 5 | 2 . 3 . . . Ballistic Cannon 3 | . . 3 . . . Launcher . | . . . . . . Special Weapon 2 | . . . . 2 . Impact Weapon . | . . . . . . Slashing Weapon . | . . . . . . Piercing Weapon 1 | . . . . 1 . Special Melee Weapon . | . . . . . . Unidentified Prototypes 2 | . . 1 . 1 . Parts Lost 9 | . . 9 . . . Power 1 | . . 1 . . . Propulsion 4 | . . 4 . . . Utility 2 | . . 2 . . . Weapon 2 | . . 2 . . . Highest Loss Streak 2 | . . 2 . . . To Critical Strikes . | . . . . . . Average Slot Usage (%) 92 | . 75 85 100 100 100 Engine 10 | . 14 10 11 11 11 Leg 21 | . 28 21 22 22 22 Device 29 | . 4 28 33 33 33 Processor 7 | . . 4 11 11 11 Energy Gun 3 | . . 6 . . . Energy Cannon 1 | . . 3 . . . Ballistic Gun 11 | . 28 6 22 14 11 Ballistic Cannon 2 | . . 4 . . . Special Weapon 3 | . . . . 7 11 Naked Turns . | . . . . . . Heaviest Build 21 | 8 9 18 16 21 18 Greatest Support 46 | 20 20 32 32 46 46 Greatest Overweight (x) 1 | . . 1 . . . Average Overweight (x) . | . . . . . . Largest Inventory Capacity 5 | 5 5 5 5 5 5 Average Capacity 5 | 5 5 5 5 5 5 Most Carried 5 | 5 5 5 5 5 5 Average Carried 4 | 2 4 4 5 4 5 Final Capacity 5 | 5 5 5 5 5 5 Final Carried 5 | 4 5 5 5 5 5 Class Distribution -------------------- 58% | Mutant 41% | Scavenger-Mutant Dominant Class ---------------- Mutant | -10/Materials Scavenger-Mutant | -9/Materials Mutant | -9/Mines Mutant | -7/Zion Scavenger-Mutant | -6/Proximity Caves Resources | -11 -10 -9 -9 -7 -6 ----------- Run | Scr Mat Mat Min Zio Pro Matter Collected 1018 | 205 95 621 15 73 9 Remotely . | . . . . . . Salvage Created 1253 | 77 92 1004 . . 80 Parts 75 | 6 4 64 . . 1 Haulers Intercepted 3 | . . 3 . . . Recyclers Shooed 2 | . . 2 . . . Parts Field Recycled . | . . . . . . Retrieved Matter . | . . . . . . Parts Self-Destructed . | . . . . . . Prevented . | . . . . . . Kills | -11 -10 -9 -9 -7 -6 ------- Run | Scr Mat Mat Min Zio Pro Combat Hostiles Destroyed 26 | . 2 22 . . 2 Guns 17 | . 2 15 . . . Cannons 8 | . . 7 . . 1 AOE 1 | . . . . . 1 Classes Destroyed 9 | 2 1 6 . . . Worker 1 | . . 1 . . . Tunneler 1 | 1 . . . . . Hauler 3 | . . 3 . . . Recycler 3 | 1 . 2 . . . Watcher 3 | . . 3 . . . Swarmer 7 | . . 7 . . . Grunt 12 | . 2 9 . . 1 Duelist 3 | . . 2 . . 1 Sentry 4 | . . 4 . . . Best Kill Streak 5 | 2 2 5 . . 2 Combat Bots Only 5 | . 2 5 . . 2 Max Kills in Single Turn 2 | 1 1 2 . . 1 Gunslinging . | . . . . . . Exploded 1 | . . . . . 1 Melee . | . . . . . . Uniques/NPCs Destroyed . | . . . . . . Combat | -11 -10 -9 -9 -7 -6 -------- Run | Scr Mat Mat Min Zio Pro Damage Taken 1696 | . 95 1503 . . 98 Core 457 | . 26 351 . . 80 Absorbed by Shields . | . . . . . . Core Remaining (%) 94 | 100 89 . . . . Volleys Fired 133 | 3 7 121 . . 2 Largest 2 | 2 2 2 . . 2 Hottest 107 | 40 40 107 . . 25 Shots Fired 240 | 6 14 216 . . 4 Gun 162 | 6 14 140 . . 2 Cannon 76 | . . 76 . . . Launcher . | . . . . . . Special 2 | . . . . . 2 Kinetic 128 | 6 14 106 . . 2 Thermal 110 | . . 110 . . . Explosive 2 | . . . . . 2 Electromagnetic . | . . . . . . Robot Hit Streak 20 | 2 5 20 . . 2 Robot Miss Streak 10 | 1 2 10 . . . Penetration Max . | . . . . . . Secondary Targets 2 | . . 2 . . . Max Gunslinging Chain 1 | . . 1 . . . Shots Hit Robots 152 | 3 9 138 . . 2 Core Hits 55 | 3 5 42 . . 5 Critical Kills . | . . . . . . Critical Parts Destroyed . | . . . . . . Critical Strikes 9 | . . 8 . . 1 Burn 3 | . . 3 . . . Destroy 1 | . . 1 . . . Blast 4 | . . 4 . . . Sever 1 | . . . . . 1 Melee Attacks . | . . . . . . Impact . | . . . . . . Slashing . | . . . . . . Piercing . | . . . . . . Sneak Attacks . | . . . . . . Combat Hostiles . | . . . . . . Follow-up Attacks . | . . . . . . Damage Inflicted 2775 | 31 92 2203 . . 449 Guns 1302 | 31 92 1179 . . . Cannons 1024 | . . 1024 . . . Explosions 379 | . . . . . 379 Melee . | . . . . . . Ramming . | . . . . . . Kinetic 1357 | 31 92 1234 . . . Thermal 969 | . . 969 . . . Explosive 379 | . . . . . 379 Electromagnetic . | . . . . . . Impact . | . . . . . . Slashing 70 | . . . . . 70 Piercing . | . . . . . . Highest Corruption 6 | . . 6 6 6 . Average Corruption 5 | . . 5 6 6 . Corruption Purged . | . . . . . . Corruption Blocked . | . . . . . . Effects 40 | . . 35 4 1 . Message Errors 6 | . . 5 . 1 . Matter Fused 9 | . . 8 1 . . Heat Flow Errors 5 | . . 4 1 . . Energy Discharges 5 | . . 4 1 . . Parts Rejected 2 | . . 2 . . . Data Loss (minor) 7 | . . 6 1 . . Data Loss (major) 2 | . . 2 . . . Misfires 2 | . . 2 . . . Weapon Failures 2 | . . 2 . . . Overload Shots . | . . . . . . Overflow Damage 35 | . . 14 . . 21 Projectiles 14 | . . 14 . . . Explosions 21 | . . . . . 21 Melee . | . . . . . . Knockbacks 13 | . . 13 . . . Impact . | . . . . . . Kinetic 10 | . . 10 . . . Secondary 3 | . . 3 . . . Self-Inflicted Damage . | . . . . . . Shots . | . . . . . . Rammed . | . . . . . . Targets Rammed 1 | . . 1 . . . Kicked 1 | . . 1 . . . Crushed . | . . . . . . Highest Temperature 369 | . 33 369 196 . . Average Temperature 79 | . 15 81 109 . . Received Heat Transfer 537 | . 72 438 . . 27 Effects 3 | . . 3 . . . Energy Bleed 1 | . . 1 . . . Interference 2 | . . 2 . . . Siege Activations . | . . . . . . Robots Corrupted . | . . . . . . Combat Hostiles . | . . . . . . Parts Fried . | . . . . . . Impact Corruptions . | . . . . . . Robots Melted . | . . . . . . Combat Hostiles . | . . . . . . Parts Melted 3 | . . 3 . . . Heat Transferred 2482 | . . 2482 . . . Parts Sabotaged . | . . . . . . Parts Stolen . | . . . . . . Parts Stripped . | . . . . . . Power Chain Reactions . | . . . . . . Missiles Intercepted . | . . . . . . Alert | -11 -10 -9 -9 -7 -6 ------- Run | Scr Mat Mat Min Zio Pro Peak Influence 336 | 10 85 336 104 . . Initial 104 | . 6 35 104 . . Average 158 | 4 47 178 104 . . Maximum Alert Level 1 | . . 1 . . . Low Security (%) 68 | 100 100 61 100 . . Level 1 31 | . . 38 . . . Level 2 . | . . . . . . Level 3 . | . . . . . . Level 4 . | . . . . . . Level 5 . | . . . . . . High Security . | . . . . . . Max Security . | . . . . . . Squads Dispatched 3 | . 1 2 . . . Investigation . | . . . . . . Extermination . | . . . . . . Reinforcement 3 | . 1 2 . . . Assault . | . . . . . . Garrison . | . . . . . . Intercept . | . . . . . . Searches Triggered . | . . . . . . Construction Impeded . | . . . . . . Haulers Reinforced . | . . . . . . Active Scanning Responses . | . . . . . . Cargo Convoy Interrupts . | . . . . . . Stealth | -11 -10 -9 -9 -7 -6 --------- Run | Scr Mat Mat Min Zio Pro Distress Signals 3 | . . 3 . . . Communications Jammed . | . . . . . . Distress Signals . | . . . . . . Times Spotted 45 | . 2 40 . . 3 Peak Tracking Total 6 | . 2 6 . . 3 Tactical Retreats 4 | . . 4 . . . Traps | -11 -10 -9 -9 -7 -6 ------- Run | Scr Mat Mat Min Zio Pro Traps Triggered 5 | . . 5 . . . Indirectly . | . . . . . . Trap Hack Attempts . | . . . . . . Triggered . | . . . . . . Disarmed . | . . . . . . Reprogrammed . | . . . . . . Reused . | . . . . . . Traps Extracted . | . . . . . . Installed . | . . . . . . Triggered . | . . . . . . Machines | -11 -10 -9 -9 -7 -6 ---------- Run | Scr Mat Mat Min Zio Pro Machines Disabled . | . . . . . . Max in Single Turn . | . . . . . . Machines Sabotaged . | . . . . . . Garrisons Compromised . | . . . . . . Overloaded Fab Kills . | . . . . . . Hacking | -11 -10 -9 -9 -7 -6 --------- Run | Scr Mat Mat Min Zio Pro Machines Accessed 2 | . 1 1 . . . Terminals 2 | . 1 1 . . . Fabricators . | . . . . . . Repair Stations . | . . . . . . Recycling Units . | . . . . . . Scanalyzers . | . . . . . . Garrison Access . | . . . . . . Total Hacks 4 | . 1 3 . . . Successful 2 | . 1 1 . . . Failed 2 | . . 2 . . . Catastrophic . | . . . . . . Database Lockouts . | . . . . . . Manual 8 | . . . . 8 . Terminals 4 | . 1 3 . . . Fabricators . | . . . . . . Repair Stations . | . . . . . . Recycling Units . | . . . . . . Scanalyzers . | . . . . . . Garrison Access . | . . . . . . Terminal Hacks 2 | . 1 1 . . . Zone Layout 2 | . 1 1 . . . Fabricator Hacks . | . . . . . . Repair Station Hacks . | . . . . . . Recycling Unit Hacks . | . . . . . . Scanalyzer . | . . . . . . Garrison Access Hacks . | . . . . . . Unauthorized Hacks . | . . . . . . Terminals . | . . . . . . Fabricators . | . . . . . . Repair Stations . | . . . . . . Recycling Units . | . . . . . . Scanalyzers . | . . . . . . Garrison Access . | . . . . . . Data Cores Recovered . | . . . . . . Used . | . . . . . . Hacking Detections 1 | . . 1 . . . Full Trace Events . | . . . . . . Feedback Events . | . . . . . . Feedback Blocked . | . . . . . . Robot Schematics Acquired 3 | . . . . 3 . Robots Built . | . . . . . . Authchips . | . . . . . . Time . | . . . . . . Total Robot Build Rating . | . . . . . . Part Schematics Acquired 15 | . . . . 15 . Parts Built . | . . . . . . Authchips . | . . . . . . Time . | . . . . . . Total Part Build Rating . | . . . . . . Parts Repaired . | . . . . . . Time . | . . . . . . Parts Recycled . | . . . . . . Recycled Matter . | . . . . . . Retrieved Matter . | . . . . . . Retrieved Components . | . . . . . . Parts Scanalyzed . | . . . . . . Part Schematics Acquired . | . . . . . . Parts Damaged . | . . . . . . Bothacking | -11 -10 -9 -9 -7 -6 ------------ Run | Scr Mat Mat Min Zio Pro Used RIF Installer . | . . . . . . Robots Hacked . | . . . . . . Non-combat . | . . . . . . Combat . | . . . . . . Robot Hacks Applied . | . . . . . . Relay Couplers Released . | . . . . . . Fabnet Peak Effective % . | . . . . . . Robots Rewired . | . . . . . . Allies Hacked . | . . . . . . Hacks Repelled . | . . . . . . Allies | -11 -10 -9 -9 -7 -6 -------- Run | Scr Mat Mat Min Zio Pro Total Allies 6 | . . . . 6 . Largest Group 6 | . . . . 6 6 Highest-Rated Group 346 | . . . . 346 346 Highest-Rated Ally 96 | . . . . 96 96 Total Orders . | . . . . . . Ally Attacks 6 | . . . . . 6 Total Damage 347 | . . . . . 347 Kills 1 | . . . . . 1 Allies Corrupted . | . . . . . . Allies Melted . | . . . . . . Intel | -11 -10 -9 -9 -7 -6 ------- Run | Scr Mat Mat Min Zio Pro Robot Analysis Total . | . . . . . . Derelict Logs Recovered 4 | . . . 2 1 1 Drone Launches . | . . . . . . Drone Recoveries . | . . . . . . Exploration | -11 -10 -9 -9 -7 -6 ------------- Run | Scr Mat Mat Min Zio Pro Turns Passed 3235 | 48 132 1465 133 1130 327 Spaces Moved 1988 | 35 92 637 100 896 228 Core 22 | 22 . . . . . Treads . | . . . . . . Legs 1966 | 13 92 637 100 896 228 Wheels . | . . . . . . Hover . | . . . . . . Flight . | . . . . . . Fastest Speed 50 | 50 120 120 120 120 140 Average Speed 122 | 76 120 122 120 121 140 Slowest Speed 190 | 120 120 190 120 140 140 Overloaded Moves . | . . . . . . Propulsion Burnouts . | . . . . . . Robots Hopped . | . . . . . . Cave-ins Triggered . | . . . . . . Exploration Rate (%) 35 | 3 24 49 33 66 38 Regions Visited 5 Branch Regions 3 Pre-discovered Areas 1 | . . . . 1 . Known Exits Taken 3 | . . 1 1 1 . Unknown Exits Taken 2 | 1 1 . . . . Scrap Searched 3 | . . . 1 1 1 Spaces Dug . | . . . . . . Terrain Destroyed 21 | . . 2 . . 19 Melee . | . . . . . . Projectile 2 | . . 2 . . . AOE 19 | . . . . . 19 Terrain Rammed . | . . . . . . Walls Destroyed . | . . . . . . Machines Disabled . | . . . . . . Actions | -11 -10 -9 -9 -7 -6 --------- Run | Scr Mat Mat Min Zio Pro Total 2542 | 50 100 1106 113 941 232 Wait 335 | . . 293 14 26 2 Move 1983 | 34 91 636 99 895 228 Hop . | . . . . . . Pick Up 27 | 8 1 13 . 5 . Fast Attach 17 | 1 1 12 . 3 . Attach 12 | 4 . 8 . . . Detach . | . . . . . . Swap 11 | . . 8 . 3 . Drop 23 | . . 14 . 9 . Fire 133 | 3 7 121 . . 2 Melee . | . . . . . . Ram . | . . . . . . Kick 1 | . . 1 . . . Crush . | . . . . . . Escape Stasis . | . . . . . . Rewire . | . . . . . . Trap . | . . . . . . Miscellaneous . | . . . . . . Route ------- -11/Scrapyard -10/Materials -9/Materials (discovered 2 exits: [*Mat] / *Min) -9/Mines -7/Zion -6/Proximity Caves History --------- Turn | Location | Event 11 | -11/Scrapyard | Discovered new exit (range 14) 49 | -11/Scrapyard | Entered Materials 171 | -10/Materials | Discovered new exit (range 9) 181 | -10/Materials | Entered another Materials area 181 | -9/Materials | Evolved 2 slots: Utility x2 320 | -9/Materials | Build established: Mutant 671 | -9/Materials | Discovered new exit (range 13) 704 | -9/Materials | Build established: Scavenger-Mutant 1010 | -9/Materials | Discovered new exit (range 12) 1055 | -9/Materials | Core integrity fell below 50% 1284 | -9/Materials | Core integrity fell below 20% 1629 | -9/Materials | Build established: Mutant 1645 | -9/Materials | Identified exit to Mines 1646 | -9/Materials | Entered Mines 1664 | -9/Mines | Learned Materials stockpile data 1672 | -9/Mines | Learned Materials garrison access intel 1775 | -9/Mines | A Derelict revealed a hidden shortcut to a safe place 1778 | -9/Mines | Identified exit to Zion 1779 | -9/Mines | Entered Zion 1823 | -7/Zion | Given A8's code to call for help 1842 | -7/Zion | System corruption cleaned by Quarantine Array 1889 | -7/Zion | Received a hallucinogenic algorithm 1892 | -7/Zion | Enhanced Grunt warped into view, answering call for help 1895 | -7/Zion | Enhanced Grunt warped into view, answering call for help 2113 | -7/Zion | Found Prototype Special Weapon 2114 | -7/Zion | Identified RU-N14's Throwing Claymores 2117 | -7/Zion | Found RU-N14's Throwing Claymores 2252 | -7/Zion | Found Unknown Piercing Weapon 2253 | -7/Zion | Identified CR-A16's Pointy Stick 2338 | -7/Zion | Imprinted 2340 | -7/Zion | Declared Zion's savior 2740 | -7/Zion | Learned location of 1 exit from Factory 2877 | -7/Zion | Discovered new exit (range 16) 2907 | -7/Zion | Identified exit to Proximity Caves 2909 | -7/Zion | Entered Proximity Caves 2909 | -6/Proximity Caves | Accompanied by 6 allies 3119 | -6/Proximity Caves | Build established: Scavenger-Mutant 3188 | -6/Proximity Caves | Learned location of 1 exit from Factory 3236 | -6/Proximity Caves | Destroyed by V7-AQ2(M) with Antimatter Reactor chain reaction Last Messages --------------- 02890_ Acquired Greatsword. 02907_ EXIT=IDENTIFIED: PROXIMITY CAVES LOCATION=PROXIMITY CAVES GOAL=ESCAPE 02973_ 3Q-ZOG(k) breaks down the debris. 03170_ Searching scrap... 03170_ Found Imp. Hacking Suite. 03170_ Found Thermic Laser. 03170_ Found 17 Matter. 03171_ Acquired 1 matter. 03188_ Acquired derelict log, extracted data. Data stored: Factory exits (x1). 03227_ G-50 Soldier Adv. Heat Sink severed. 03227_ G-50 Soldier destroyed. 03230_ L-41 Fighter destroyed. 03230_ Destroyed Lgt. Angular Momentum Engine. 03231_ Acquired 8 matter. 03232_ The unstable cave ceiling collapses. 03236_ G-50 Soldier destroyed. 03236_ Chain reaction triggered in Antimatter Reactor. Map ----- +----------------------------------------------------+ | ?????????????????????????????????????????????????? | | ?????????????????????????????????????????????????? | | ?????????????????????????????????????????????????? | | ?????????????????????????????????????????????????? | | ?????????????????????????????????????????????????? | | ?????????????????????????????????????????????????? | | ?????????####????????????????????????????????????? | | #????##### ############"##??????????????????????? | | ??### ## #??????????????????????? | | #?# ##?????????????????????? | | ## ## ###### #?????????????????????? | | !% #########?# #?????????????????????? | | [ ##???## ### ###?????????????????????? | | ###????# ### ##???????????????????????? | | #?????## ### ##????????????????????????? | | #????## ## #?????????????????????????? | | ##???# ## #?????????????????????????? | | ##??# ### #?????????????????????????? | | ## #??# #####?# ####??????????????????????? | | ?## ##?## ##?????# ##?????????????????????? | | ??## #### #??????# #?????????????????????? | | ???# ## ##??????## #?????????????????????? | | ???# # #????????## #?????????????????????? | | ##?# # ##?????????# MM ;?????????????????????? | | ## ##??????????##M ;?????????????????????? | | ##????????????#g@M;?????????????????????? | | ##??????????# g ;?????????????????????? | | # #???????????# % #????????????????????? | | ## #?????????? #????????????????????? | | ?## #???????? # ????????????????????? | | ??# #######?# ???????????????????? | | ??# ## ## #?## ##??????????????????? | | ?## ## #??#### ###???????????????????? | | ## ##?????# ## ##?????????????????????? | | ##??????# #??##??????????????????????? | | ##???????#;#???????????????????????????? | | ###????????##????????????????????????????? | | ##????????????????????????????????????????? | | ####?????????????????????????????????????????? | | #????????????????????????????????????????????? | | #???????????????????????????????????????????? | | ????????????????????????????????????????? | | ?????????????????????????????????????? | | # #### #?????????????????????????????????????? | | # #???# ##?????????????????????????????????????? | | # #????###??????????????????????????????????????? | | # #?????????????????????????????????????????????? | | # ?????????????????????????????????????????????? | | # ?????????????????????????????????????????????? | | # #????????????????????????????????????????????? | +----------------------------------------------------+ Best States ------------- Heat Dissipation 42 Energy Generation 15 Energy Capacity 265 Matter Stores 300 Matter Capacity 300 Sight Range 16 Robot Scan Range 14 Terrain Scan Density 10 Additional Mass Support 6 Evasion (%) 55 Trap Extractor Capacity 8 Item Schematics ----------------- Imp. Trap Extractor | -7/Zion | Archive 0b10 Decoder Chip [Generic] | -7/Zion | Archive Med. Treads | -7/Zion | Archive Adv. Heat Sink | -7/Zion | Archive Recalibrator | -7/Zion | Archive Drone Bay | -7/Zion | Archive Mak. Hacking Suite | -7/Zion | Archive Imp. Coolant Injector | -7/Zion | Archive Imp. Arc Projector | -7/Zion | Archive Mak. Spear | -7/Zion | Archive Power Sword | -7/Zion | Archive Focal Shield | -7/Zion | Archive Imp. Titanium Leg | -7/Zion | Archive Power Maul | -7/Zion | Archive Imp. Medium Treads | -7/Zion | Archive Robot Schematics ------------------ A-02 Transporter | -7/Zion | Archive K-01 Serf | -7/Zion | Archive M-14 Sweeper | -7/Zion | Archive Fabricated ------------ Nothing Alien Tech Used ----------------- None Achievements -------------- None Challenges ------------ None Game ------ Seed GravitySniperExpander Manual? 0 Play Time 00:38:39 Cumulative 35.1 hours Start 2022.12.12 @ 14:23:26 End 2022.12.12 @ 15:25:52 Sessions 1 Manual Loads 0 Difficulty Rogue Special Mode None Game No. 43 Rogue 43 Adventurer 0 Explorer 0 Win Type - Total 0 Types 0/0/0/0/0/0/0/0/0 Lore% 18 Gallery% 33 Achievement% 28 Wizard Run 0 Options --------- ASCII 0 Keyboard 0 Movement Mouse Keybinds 0 Fullscreen 2 Font 24/Smallcaps Map View 76x50 Tactical HUD 1 Map Filters NONE Filters NONE Steam 1 RUN: 25678382-bf67-45eb-83d1-3d51e9f29435